bitfinex/quotes_BTCUSD_20240821
["timestamp","ask_amount","ask_price","bid_price","bid_amount"]
[1724267131572,0.000825,60917.0,60916.0,1.87708279]
[1724267132238,0.2316149,60927.0,60916.0,0.72796279]
[1724267132454,0.2316149,60927.0,60926.0,0.821667]
[1724267132683,0.2316149,60927.0,60926.0,1.88963698]
[1724267133378,0.2316149,60927.0,60926.0,2.21790398]
[1724267133617,0.00846,60939.0,60926.0,2.21790398]
[1724267133818,0.49229154,60950.0,60943.0,1.093662]
[1724267134058,0.49229154,60950.0,60948.0,0.001]
[1724267134281,0.00826,60952.0,60948.0,0.001]
[1724267134282,0.172323,60952.0,60948.0,0.165073]
[1724267134491,0.164067,60951.0,60950.0,0.001]
[1724267134729,0.164067,60951.0,60943.0,1.66596509]
[1724267134730,0.164069,60950.0,60946.0,0.164079]
[1724267134944,0.00826,60952.0,60946.0,0.164079]
[1724267134945,0.172325,60952.0,60946.0,0.164079]
[1724267135176,0.00826,60952.0,60943.0,1.17674692]
[1724267135387,0.328148,60948.0,60943.0,1.17674692]
[1724267135599,0.164077,60947.0,60943.0,1.17674692]
[1724267135819,0.328148,60948.0,60943.0,0.98408711]
[1724267136037,0.492255,60944.0,60943.0,0.57338711]
[1724267136271,0.023,60947.0,60943.0,0.57338711]
[1724267136502,0.023,60947.0,60943.0,0.57438711]
[1724267136721,0.164084,60945.0,60943.0,0.57634692]
[1724267136939,0.01,60947.0,60945.0,0.001]
[1724267137192,0.01,60947.0,60944.0,0.164084]
[1724267137405,0.164081,60946.0,60943.0,0.57734692]
[1724267137847,0.164081,60946.0,60945.0,0.001]
[1724267138072,0.005,60947.0,60946.0,0.001]
[1724267138511,0.005,60947.0,60946.0,0.165079]
[1724267139567,0.005,60947.0,60946.0,0.164079]
[1724267139796,0.169076,60947.0,60946.0,0.57338711]
[1724267139998,0.202076,60947.0,60946.0,0.57438711]
[1724267140212,0.005,60947.0,60946.0,0.57438711]
[1724267140432,0.005,60947.0,60946.0,0.73946611]
[1724267140649,0.01,60947.0,60946.0,1.06958492]
[1724267141579,0.01,60947.0,60946.0,1.39774392]
[1724267141803,0.01,60947.0,60946.0,1.78964392]
[1724267142658,0.010825,60947.0,60946.0,1.78964392]
[1724267143104,0.010825,60947.0,60946.0,1.46148492]
[1724267143514,0.000825,60947.0,60946.0,1.46148492]
[1724267144459,0.000825,60947.0,60946.0,1.78964392]
[1724267144664,0.000825,60947.0,60946.0,1.46148492]
[1724267145976,0.000825,60947.0,60946.0,1.78964392]
[1724267146398,0.000825,60947.0,60946.0,1.46581798]
[1724267146598,0.000825,60947.0,60946.0,1.46285817]
[1724267147246,0.000825,60947.0,60946.0,1.13469917]
[1724267147456,0.000825,60947.0,60946.0,0.57872017]
[1724267147919,0.000825,60947.0,60946.0,0.74279917]
[1724267148123,0.000825,60947.0,60946.0,0.74575898]
[1724267148811,1.217907,60947.0,60946.0,0.57872017]
[1724267149008,0.000825,60947.0,60946.0,0.57872017]
[1724267149157,0.000825,60947.0,60946.0,0.58167998]
[1724267149359,0.000825,60947.0,60946.0,1.07391798]
[1724267149606,0.01799511,60947.0,60946.0,1.07391798]
[1724267150138,0.01799511,60947.0,60946.0,0.74279917]
[1724267150343,0.01799511,60947.0,60946.0,0.57872017]
[1724267150569,0.01799511,60947.0,60946.0,1.07391798]
[1724267150950,0.01799511,60947.0,60946.0,1.57379285]
[1724267151275,0.01799511,60947.0,60946.0,1.90195185]
[1724267151276,0.000825,60947.0,60946.0,1.90195185]
[1724267151493,0.01799168,60947.0,60946.0,2.23011085]
[1724267151695,0.01799168,60947.0,60946.0,1.90195185]
[1724267151872,0.01799168,60947.0,60946.0,1.90095185]
[1724267152350,1e-08,60947.0,60946.0,2.23111085]
[1724267152574,0.00826,60952.0,60951.0,1.476594]
[1724267152796,0.00826,60952.0,60951.0,2.20425679]
[1724267153204,0.00846,60959.0,60958.0,1.15128881]
[1724267153449,0.00846,60959.0,60958.0,1.87599179]
[1724267153881,0.00846,60959.0,60958.0,0.00295981]
[1724267154071,0.00846,60959.0,60958.0,0.49510081]
[1724267154224,0.00846,60959.0,60958.0,0.82319481]
[1724267154420,0.00846,60959.0,60958.0,1.31529179]
[1724267154829,0.00946,60959.0,60958.0,2.03138579]
[1724267155033,0.00946,60959.0,60958.0,2.22198579]
[1724267155233,0.00946,60959.0,60958.0,2.23198579]
[1724267155850,0.00946,60959.0,60958.0,2.23398579]
[1724267156048,0.00846,60959.0,60958.0,2.32698579]
[1724267156354,0.00946,60959.0,60958.0,2.33198579]
[1724267156710,0.00846,60959.0,60958.0,2.32498579]
[1724267156916,0.00946,60959.0,60958.0,2.33198579]
[1724267157122,0.00846,60959.0,60958.0,2.64407979]
[1724267157541,0.00946,60959.0,60958.0,2.66507979]
[1724267157743,0.00946,60959.0,60958.0,2.66841285]
[1724267157917,0.00946,60959.0,60958.0,2.66141285]
[1724267157918,0.00846,60959.0,60958.0,2.66141285]
[1724267158144,0.00846,60959.0,60958.0,2.64741285]
[1724267158356,0.00846,60959.0,60958.0,2.65941285]
[1724267158574,0.00846,60959.0,60958.0,2.66041285]
[1724267158792,0.00846,60959.0,60958.0,2.66141285]
[1724267159025,0.00846,60959.0,60958.0,2.33031885]
[1724267159277,0.00825,60966.0,60964.0,0.16698981]
[1724267159485,0.00825,60966.0,60962.0,0.32807]
[1724267159486,0.00825,60966.0,60963.0,0.00295981]
[1724267159706,0.00825,60966.0,60965.0,0.493085]
[1724267160208,0.00825,60966.0,60965.0,1.39230479]
[1724267160426,0.00825,60966.0,60965.0,1.72036179]
[1724267160427,0.00925,60966.0,60965.0,1.72036179]
[1724267161084,0.00925,60966.0,60965.0,1.72736179]
[1724267161085,0.01025,60966.0,60965.0,1.72736179]
[1724267161548,0.01025,60966.0,60965.0,1.39930479]
[1724267161780,0.01025,60966.0,60965.0,0.504085]
[1724267162033,0.01025,60966.0,60965.0,0.012]
[1724267162235,0.00825,60966.0,60962.0,0.328068]
[1724267162452,0.00825,60966.0,60965.0,0.164028]
[1724267162686,0.00825,60966.0,60965.0,0.006]
[1724267163144,0.00825,60966.0,60965.0,0.827142]
[1724267163374,0.00825,60966.0,60965.0,1.32116179]
[1724267163595,0.000824,60970.0,60969.0,1.78181411]
[1724267164037,0.000824,60970.0,60969.0,2.10984911]
[1724267164278,0.000824,60970.0,60969.0,2.4584119]
[1724267165113,0.000824,60970.0,60969.0,1.36851411]
[1724267165729,0.000824,60970.0,60969.0,1.37047392]
[1724267166153,0.000824,60970.0,60969.0,1.37647392]
[1724267166392,0.001824,60970.0,60969.0,1.37647392]
[1724267166769,0.001824,60970.0,60969.0,1.9517769]
[1724267166978,0.000824,60970.0,60969.0,2.2738119]
[1724267167186,0.000824,60970.0,60969.0,2.4618119]
[1724267167400,0.001824,60970.0,60969.0,2.9008469]
[1724267167617,0.001824,60970.0,60969.0,2.9018469]
[1724267167824,0.001824,60970.0,60969.0,2.8988469]
[1724267168026,0.001824,60970.0,60969.0,2.8978469]
[1724267168230,0.001824,60970.0,60969.0,2.9068469]
[1724267168684,0.000824,60970.0,60969.0,2.89417996]
[1724267169106,0.001824,60970.0,60969.0,2.91617996]
[1724267169315,0.000824,60970.0,60969.0,2.90817996]
[1724267169516,0.001824,60970.0,60969.0,2.91617996]
[1724267169732,0.001824,60970.0,60969.0,2.91717996]
[1724267169939,0.001568,60994.0,60984.0,0.67320648]
[1724267170179,0.001568,60994.0,60984.0,1.76346346]
[1724267170366,0.001568,60994.0,60984.0,2.09141746]
[1724267170569,0.02215855,60990.0,60984.0,1.82107146]
[1724267170925,0.005,60990.0,60984.0,1.82107146]
[1724267171323,0.005,60990.0,60984.0,1.82507146]
[1724267171801,0.005,60990.0,60984.0,1.33311448]
[1724267172258,0.005,60990.0,60984.0,1.81507146]
[1724267172577,0.046,60985.0,60984.0,1.81507146]
[1724267172732,0.045,60985.0,60984.0,1.81507146]
[1724267172951,0.046,60985.0,60984.0,1.00316048]
[1724267173162,0.046,60985.0,60984.0,1.15916346]
[1724267173356,0.046,60985.0,60984.0,1.48711746]
[1724267173559,0.047,60985.0,60984.0,1.49111746]
[1724267173757,0.047,60985.0,60984.0,1.49511746]
[1724267174161,0.047,60985.0,60984.0,0.67520648]
[1724267174519,0.047,60985.0,60984.0,0.67120648]
[1724267174725,0.045,60985.0,60984.0,0.66720648]
[1724267175145,0.046,60985.0,60984.0,1.00316048]
[1724267175421,0.046,60985.0,60984.0,0.99516048]
[1724267175830,0.047,60985.0,60984.0,1.00316048]
[1724267176049,0.047,60985.0,60984.0,1.33544754]
[1724267176259,0.047,60985.0,60984.0,0.67953954]
[1724267176422,0.047,60985.0,60984.0,0.50960273]
[1724267176630,0.045,60985.0,60984.0,0.99353373]
[1724267176830,0.045,60985.0,60984.0,0.99549354]
[1724267177431,0.045,60985.0,60984.0,0.66753954]
[1724267177970,0.046,60985.0,60984.0,0.67353954]
[1724267178196,0.046,60985.0,60984.0,1.00149354]
[1724267178325,0.046,60985.0,60984.0,1.92025052]
[1724267179168,0.046,60985.0,60984.0,2.24820452]
[1724267179370,0.046824,60985.0,60984.0,2.24820452]
[1724267179570,0.045824,60985.0,60984.0,2.24220452]
[1724267180755,0.045824,60985.0,60984.0,2.24520452]
[1724267180954,0.046824,60985.0,60984.0,2.25320452]
[1724267181390,0.02669778,60999.0,60993.0,0.57838848]
[1724267181569,0.02669778,60999.0,60993.0,0.90629448]
[1724267181788,0.02669778,60999.0,60993.0,1.39787938]
[1724267181988,0.02669778,60999.0,60993.0,1.63047938]
[1724267182386,0.002857,60998.0,60993.0,1.39787938]
[1724267182763,0.002857,60998.0,60993.0,1.62537938]
[1724267182968,0.00954,60999.0,60993.0,1.62537938]
[1724267183163,0.00285697,60998.0,60993.0,1.95328538]
[1724267183365,0.00285697,60998.0,60993.0,1.62537938]
[1724267183629,0.00954,60999.0,60993.0,1.62537938]
[1724267184121,0.00285698,60998.0,60993.0,1.62537938]
[1724267184322,0.00285698,60998.0,60993.0,1.63037938]
[1724267184746,0.16679598,60998.0,60993.0,0.90801059]
[1724267184954,0.3861,60995.0,60993.0,0.41715159]
[1724267185159,0.3861,60995.0,60993.0,0.91001059]
[1724267185396,0.3861,60995.0,60993.0,0.5780644]
[1724267185591,0.1868,60995.0,60993.0,0.5780644]
[1724267185953,0.165518,60994.0,60993.0,0.41115159]
[1724267186172,0.002568,60994.0,60993.0,0.41815159]
[1724267186349,0.002568,60994.0,60993.0,0.42248465]
[1724267186569,0.494419,60994.0,60993.0,0.42348465]
[1724267186976,0.166518,60994.0,60993.0,0.42248465]
[1724267187194,0.166518,60994.0,60993.0,0.42348465]
[1724267187414,0.165518,60994.0,60993.0,0.41648465]
[1724267187768,0.168518,60994.0,60993.0,0.41844446]
[1724267187984,0.001568,60994.0,60993.0,0.58239746]
[1724267188142,0.001568,60994.0,60993.0,1.45860946]
[1724267188366,0.001568,60994.0,60993.0,1.45844414]
[1724267188526,0.001568,60994.0,60993.0,1.62244712]
[1724267188727,0.001568,60994.0,60993.0,1.95035312]
[1724267190197,0.00133903,60994.0,60993.0,1.95035312]
[1724267190654,0.00133903,60994.0,60993.0,0.91417833]
[1724267191098,0.00133903,60994.0,60993.0,0.91713814]
[1724267191294,0.00133903,60994.0,60993.0,0.91013814]
[1724267191494,0.00133903,60994.0,60993.0,1.24004414]
[1724267191698,0.00233903,60994.0,60993.0,1.24604414]
[1724267191928,0.00133903,60994.0,60993.0,1.24004414]
[1724267192130,0.00216303,60994.0,60993.0,1.73195312]
[1724267192250,0.00316303,60994.0,60993.0,1.96985312]
[1724267192444,0.00216303,60994.0,60993.0,1.96085312]
[1724267192650,0.00216303,60994.0,60993.0,1.62998731]
[1724267192879,0.00316303,60994.0,60993.0,1.41008731]
[1724267193078,0.00316303,60994.0,60993.0,1.40108731]
[1724267193304,0.00039962,60997.0,60995.0,0.327895]
[1724267193569,0.00039962,60997.0,60996.0,0.163945]
[1724267193784,0.00039962,60997.0,60996.0,0.491835]
[1724267193895,0.00039962,60997.0,60996.0,0.492835]
[1724267194100,0.00039962,60997.0,60996.0,0.49479481]
[1724267194536,0.00039962,60997.0,60996.0,0.16690481]
[1724267194895,0.00039962,60997.0,60996.0,0.49479481]
[1724267195329,0.00139962,60997.0,60996.0,0.99268779]
[1724267195480,0.00039962,60997.0,60996.0,0.98668779]
[1724267195683,0.00039962,60997.0,60996.0,0.98372798]
[1724267195882,0.00139962,60997.0,60996.0,0.99272798]
[1724267196123,0.00039962,60997.0,60996.0,0.98472798]
[1724267196449,0.00139962,60997.0,60996.0,1.94604122]
[1724267196973,0.00139962,60997.0,60996.0,1.95100103]
[1724267197617,0.00039962,60997.0,60996.0,1.94200103]
[1724267197824,0.00039962,60997.0,60996.0,1.95100103]
[1724267198154,0.00039962,60997.0,60996.0,1.94900103]
[1724267198409,0.00039962,60997.0,60996.0,1.95333409]
[1724267198626,0.00139962,60997.0,60996.0,1.96433409]
[1724267198846,0.00139962,60997.0,60996.0,1.63644409]
[1724267199047,0.00139962,60997.0,60996.0,1.63314409]
[1724267200066,0.00139962,60997.0,60996.0,1.81754409]
[1724267200272,0.00139962,60997.0,60996.0,2.14543409]
[1724267200474,0.00139962,60997.0,60996.0,2.14535409]
[1724267202107,0.00285698,60998.0,60996.0,2.14535409]
[1724267202311,3.03514433,61000.0,60999.0,0.82264481]
[1724267202312,2.64111769,61000.0,60999.0,0.82264481]
[1724267202522,2.64111769,61000.0,60999.0,1.31452179]
[1724267203353,2.64111769,61000.0,60999.0,1.72262179]
[1724267203559,2.64111769,61000.0,60999.0,2.05149579]
[1724267204174,2.64211769,61000.0,60999.0,2.06449579]
[1724267204405,2.64211769,61000.0,60999.0,2.06549579]
[1724267204619,0.00825,61008.0,61005.0,1.54660281]
[1724267204821,0.00825,61008.0,61005.0,2.31774679]
[1724267205227,0.00825,61008.0,61005.0,2.31674679]
[1724267205991,0.02411026,61006.0,61005.0,2.32874679]
[1724267206208,0.02411026,61006.0,61005.0,1.72060579]
[1724267206625,0.00825,61008.0,61005.0,1.72060579]
[1724267206626,0.00825,61008.0,61007.0,0.00295981]
[1724267206821,0.00825,61008.0,61007.0,2.02220386]
[1724267207002,0.00825,61008.0,61007.0,2.17017764]
[1724267207829,0.00825,61008.0,61007.0,2.17990282]
[1724267208072,0.00825,61008.0,61007.0,2.14792904]
[1724267208269,0.00825,61008.0,61007.0,0.00226188]
[1724267208464,0.00825,61008.0,61007.0,0.00030207]
[1724267208633,0.00825,61008.0,61005.0,0.014]
[1724267208634,1.04279,61006.0,61005.0,0.014]
[1724267208835,0.336076,61008.0,61005.0,0.014]
[1724267209036,0.16392,61005.0,61004.0,0.00030207]
[1724267209236,0.163921,61005.0,61003.0,0.00226188]
[1724267209470,0.163921,61005.0,60998.0,0.16620088]
[1724267209471,0.163926,61003.0,60998.0,0.16620088]
[1724267209680,0.163926,61003.0,60994.0,0.532598]
[1724267209681,0.163935,61000.0,60995.0,0.16434072]
[1724267209948,0.16393,61002.0,60996.0,0.32794698]
[1724267210139,0.163932,61001.0,60997.0,0.163942]
[1724267210336,0.02,60998.0,60997.0,0.00226188]
[1724267210698,0.02,60998.0,60997.0,0.98597486]
[1724267210898,0.00825,61008.0,61004.0,0.00226188]
[1724267211100,0.00825,61008.0,61004.0,0.16618488]
[1724267211304,0.00825,61008.0,61005.0,0.16392]
[1724267211526,0.00825,61008.0,61007.0,0.00030207]
[1724267211928,0.00825,61008.0,61007.0,0.0043331]
[1724267212392,0.00825,61008.0,61007.0,1.31800596]
[1724267212509,0.00825,61008.0,61007.0,0.99017496]
[1724267213463,0.01025,61008.0,61007.0,1.31800596]
[1724267213664,0.00825,61008.0,61007.0,1.31800596]
[1724267213890,0.00925,61008.0,61007.0,2.57780596]
[1724267214091,0.00925,61008.0,61007.0,2.58180596]
[1724267214266,0.00825,61008.0,61007.0,3.11423696]
[1724267214472,0.00825,61008.0,61007.0,3.11523696]
[1724267214672,0.00925,61008.0,61007.0,3.11523696]
[1724267215054,0.00925,61008.0,61007.0,2.78640596]
[1724267216507,0.00825,61020.0,61007.0,2.78640596]
[1724267216508,0.00825,61020.0,61019.0,1.14944288]
[1724267216714,0.01715151,61033.0,61019.0,1.14944288]
[1724267216715,0.027176,61046.0,61045.0,0.376213]
[1724267216716,0.49229154,61046.0,61045.0,0.376213]
[1724267216972,0.49229154,61046.0,61045.0,0.98215932]
[1724267217179,0.2037,61055.0,61054.0,0.163789]
[1724267217450,0.2037,61055.0,61054.0,0.49325911]
[1724267217570,0.2037,61055.0,61054.0,0.00189211]
[1724267217975,0.2125,61067.0,61054.0,0.00189211]
[1724267218205,0.18089454,61070.0,61064.0,0.00189211]
[1724267218206,0.01714754,61070.0,61064.0,0.00189211]
[1724267218414,0.2125,61069.0,61058.0,0.00189211]
[1724267218630,0.2125,61069.0,61064.0,0.00189211]
[1724267218838,0.00764315,61076.0,61065.0,0.16400298]
[1724267219039,0.00764315,61076.0,61070.0,0.491239]
[1724267219246,0.00764315,61076.0,61070.0,0.65713409]
[1724267219451,0.00764315,61076.0,61070.0,0.98462709]
[1724267219652,0.2311532,61071.0,61061.0,0.163769]
[1724267219850,0.2311532,61071.0,61057.0,0.00189211]
[1724267220060,0.2311532,61071.0,61057.0,0.16589509]
[1724267220260,0.0105532,61071.0,61058.0,0.16589509]
[1724267220470,0.2206,61070.0,61059.0,0.375]
[1724267220672,0.2206,61070.0,61060.0,0.16400298]
[1724267220874,0.384347,61070.0,61060.0,0.16400298]
[1724267221129,0.327522,61065.0,61054.0,0.005]
[1724267221351,0.2206,61064.0,61054.0,0.005]
[1724267221529,0.327531,61063.0,61046.0,0.00189211]
[1724267221703,0.163779,61058.0,61047.0,0.16400298]
[1724267221909,0.163775,61060.0,61058.0,0.001]
[1724267222138,0.163766,61063.0,61058.0,0.001]
[1724267222391,5e-05,61078.0,61058.0,0.001]
[1724267222392,0.00285487,61061.0,61058.0,0.16500298]
[1724267222602,0.00285487,61061.0,61060.0,0.16566511]
[1724267222773,0.2176,61070.0,61067.0,0.00189211]
[1724267223005,0.0105532,61071.0,61068.0,0.16400298]
[1724267223208,0.0105532,61071.0,61070.0,0.00189211]
[1724267223453,0.0105532,61071.0,61070.0,0.16400298]
[1724267224083,0.0105532,61071.0,61070.0,0.16589509]
[1724267224732,0.0105532,61071.0,61070.0,0.16400298]
[1724267225318,0.0105532,61071.0,61063.0,0.163762]
[1724267225462,0.0105532,61071.0,61070.0,0.002]
[1724267225664,0.0105532,61071.0,61064.0,0.16400298]
[1724267225869,0.0105532,61071.0,61067.0,0.00189211]
[1724267226072,0.1742962,61071.0,61070.0,0.002]
[1724267226398,0.1742962,61071.0,61067.0,0.00189211]
[1724267226602,0.163746,61070.0,61067.0,0.00189211]
[1724267226938,0.0105532,61071.0,61070.0,0.00189211]
[1724267227071,0.0105532,61071.0,61070.0,0.00622074]
[1724267227275,0.0105532,61071.0,61070.0,0.00432863]
[1724267227503,0.0113772,61071.0,61070.0,0.00622074]
[1724267227676,0.0113772,61071.0,61070.0,0.00432863]
[1724267227877,0.0113772,61071.0,61070.0,1.42813161]
[1724267228329,0.0113772,61071.0,61070.0,1.43013161]
[1724267228537,0.0113772,61071.0,61070.0,2.26041761]
[1724267228731,0.0002,61079.0,61075.0,1.41119362]
[1724267228950,0.0002,61079.0,61075.0,1.9026626]
[1724267229132,0.0002,61079.0,61075.0,2.2301286]
[1724267230300,0.0002,61079.0,61075.0,2.9575946]
[1724267230505,0.0002,61079.0,61075.0,3.0585946]
[1724267230716,0.0002,61079.0,61075.0,3.3860606]
[1724267231331,0.0002,61079.0,61075.0,3.3930606]
[1724267231764,0.163675,61097.0,61075.0,3.3930606]
[1724267231765,0.00824,61108.0,61096.0,0.00189211]
[1724267231971,0.42567153,61135.0,61107.0,0.3597]
[1724267231972,0.02567153,61135.0,61107.0,0.3597]
[1724267232187,0.0062365,61156.0,61128.0,0.16359]
[1724267232188,0.2093,61149.0,61128.0,0.16359]
[1724267232400,0.2093,61149.0,61124.0,0.1636]
[1724267232401,0.002,61145.0,61124.0,0.1636]
[1724267232600,0.002,61145.0,61121.0,0.2089]
[1724267232601,0.16357,61136.0,61123.0,0.163603]
[1724267232819,0.234972,61149.0,61121.0,0.2089]
[1724267232820,0.001835,61150.0,61139.0,0.00189211]
[1724267233027,0.001835,61150.0,61131.0,0.3967]
[1724267233028,0.2146,61149.0,61131.0,0.3967]
[1724267233244,0.167735,61150.0,61132.0,0.1775]
[1724267233245,0.001835,61150.0,61132.0,0.1775]
[1724267233657,0.001835,61150.0,61148.0,0.00432863]
[1724267233871,0.491603,61149.0,61148.0,0.00432863]
[1724267234069,1.144743,61149.0,61148.0,0.00432863]
[1724267234279,0.490603,61149.0,61148.0,0.00432863]
[1724267234485,0.817672,61149.0,61148.0,0.00432863]
[1724267234801,1.362341,61149.0,61148.0,0.00532863]
[1724267235222,0.001,61138.0,61125.0,0.49229154]
[1724267235434,0.001,61120.0,61101.0,0.49229154]
[1724267235641,0.3597,61117.0,61101.0,0.49229154]
[1724267235873,0.1,61123.0,61101.0,0.49229154]
[1724267235874,0.001,61120.0,61101.0,0.49229154]
[1724267236088,0.4,61099.0,61052.0,0.2196]
[1724267236299,0.2159,61084.0,61055.0,0.001]
[1724267236516,0.3936,61071.0,61057.0,0.16400298]
[1724267236725,0.3597,61066.0,61051.0,0.0002]
[1724267236968,0.023,61065.0,61052.0,0.16400298]
[1724267237156,0.1,61065.0,61053.0,0.16400298]
[1724267237571,0.3597,61094.0,61066.0,0.2287]
[1724267237791,0.49229154,61081.0,61071.0,0.16400298]
[1724267237994,0.2287,61103.0,61077.0,0.001]
[1724267238209,0.327344,61098.0,61086.0,0.163701]
[1724267238428,0.327344,61098.0,61086.0,0.16400298]
[1724267238634,0.556016,61103.0,61080.0,0.163718]
[1724267238635,0.001,61099.0,61080.0,0.163718]
[1724267238840,0.18369,61091.0,61081.0,0.32771898]
[1724267239090,0.02,61091.0,61084.0,0.327415]
[1724267239292,0.02,61091.0,61086.0,0.163702]
[1724267239534,0.02,61091.0,61086.0,0.16400298]
[1724267239738,0.02,61091.0,61087.0,0.16400298]
[1724267240175,0.02,61091.0,61088.0,0.163697]
[1724267240400,0.02,61091.0,61090.0,0.82278596]
[1724267240604,0.013,61097.0,61096.0,0.163676]
[1724267240807,0.49229154,61109.0,61090.0,0.16832694]
[1724267240808,0.001,61108.0,61090.0,0.00432396]
[1724267241023,0.3607,61104.0,61090.0,0.00432396]
[1724267241234,0.004,61091.0,61090.0,0.00432396]
[1724267241442,0.004,61091.0,61090.0,0.49540096]
[1724267241623,0.16365,61106.0,61098.0,0.163669]
[1724267241860,0.163645,61108.0,61100.0,0.163663]
[1724267242062,0.16365,61106.0,61100.0,0.163663]
[1724267242238,0.16365,61106.0,61098.0,0.32767298]
[1724267242487,0.16365,61106.0,61099.0,0.163668]
[1724267242693,0.014,61108.0,61107.0,0.163647]
[1724267242897,0.014,61108.0,61107.0,0.490941]
[1724267243106,0.024,61108.0,61107.0,1.145529]
[1724267243311,0.2256,61129.0,61119.0,0.163614]
[1724267243488,0.2256,61129.0,61120.0,0.490837]
[1724267243745,0.2256,61129.0,61098.0,0.16500298]
[1724267243746,0.2256,61129.0,61105.0,0.00189211]
[1724267243955,0.05804098,61146.0,61120.0,0.163612]
[1724267244162,0.0062365,61156.0,61148.0,0.163535]
[1724267244383,0.0062365,61156.0,61145.0,0.32709]
[1724267244591,0.0062365,61156.0,61145.0,0.327089]
[1724267244799,0.0062365,61156.0,61149.0,0.163534]
[1724267245008,0.0062365,61156.0,61149.0,0.32753698]
[1724267245225,0.0062365,61156.0,61149.0,0.65460598]
[1724267245427,0.0062365,61156.0,61149.0,0.32753698]
[1724267245857,0.0062365,61156.0,61131.0,0.00189211]
[1724267246071,0.0062365,61156.0,61132.0,0.16400298]
[1724267246072,0.2199,61149.0,61132.0,0.16400298]
[1724267246275,0.2199,61149.0,61129.0,0.49229154]
[1724267246276,0.163571,61136.0,61129.0,0.49229154]
[1724267246483,0.327117,61141.0,61130.0,0.16400298]
[1724267246667,0.163571,61136.0,61130.0,0.16400298]
[1724267246925,0.1742,61147.0,61121.0,0.327216]
[1724267247131,0.1742,61147.0,61110.0,0.49329154]
[1724267247132,0.163597,61126.0,61122.0,0.16400298]
[1724267247547,0.32714,61136.0,61114.0,0.327256]
[1724267247548,0.33014,61136.0,61114.0,0.327256]
[1724267247765,0.33014,61136.0,61109.0,0.2263]
[1724267247766,0.2208,61128.0,61115.0,0.16400298]
[1724267247993,0.123,61135.0,61115.0,0.16400298]
[1724267247994,0.327181,61129.0,61116.0,0.163623]
[1724267248213,0.1,61135.0,61117.0,0.16400298]
[1724267248214,0.0126,61134.0,61117.0,0.16400298]
[1724267248467,0.163588,61130.0,61122.0,0.163605]
[1724267248675,0.163575,61134.0,61126.0,0.163595]
[1724267248883,0.163579,61133.0,61124.0,0.1636]
[1724267249087,0.163579,61133.0,61122.0,0.002]
[1724267249088,0.16359,61129.0,61122.0,0.002]
[1724267249322,0.2208,61139.0,61122.0,0.002]
[1724267249504,0.163594,61127.0,61122.0,0.002]
[1724267249910,0.327158,61133.0,61122.0,0.00389211]
[1724267250112,0.327173,61130.0,61121.0,0.163609]
[1724267250389,0.163595,61127.0,61122.0,0.001]
[1724267250824,0.1636,61125.0,61122.0,0.001]
[1724267251066,0.1636,61125.0,61104.0,0.001]
[1724267251067,0.02851118,61131.0,61090.0,0.1738]
[1724267251068,0.001,61122.0,61090.0,0.1738]
[1724267251265,0.3597,61117.0,61110.0,0.49229154]
[1724267251467,0.4879,61124.0,61111.0,0.16400298]
[1724267251648,0.32721,61123.0,61111.0,0.16400298]
[1724267251887,0.0256623,61116.0,61112.0,0.327267]
[1724267252081,0.0256623,61116.0,61111.0,0.16400298]
[1724267252082,0.0256623,61116.0,61115.0,1.16372998]
[1724267252288,0.0256623,61116.0,61115.0,1.49098098]
[1724267253099,0.0256623,61116.0,61115.0,1.48998098]
[1724267253544,0.0266623,61116.0,61115.0,0.84847898]
[1724267253744,0.0266623,61116.0,61115.0,1.18005819]
[1724267253948,0.0266623,61116.0,61115.0,0.34893119]
[1724267253949,0.0256623,61116.0,61115.0,0.34893119]
[1724267254157,0.0256623,61116.0,61115.0,1.16705819]
[1724267254374,0.0256623,61116.0,61115.0,1.49430919]
[1724267254581,0.0266623,61116.0,61115.0,1.49430919]
[1724267255047,0.0256623,61116.0,61115.0,0.00432821]
[1724267255249,0.0266623,61116.0,61115.0,0.01832821]
[1724267255476,0.0266623,61116.0,61115.0,0.56213119]
[1724267255681,4e-05,61121.0,61120.0,0.164612]
[1724267255886,4e-05,61121.0,61120.0,1.52670312]
[1724267256103,4e-05,61121.0,61120.0,1.85392812]
[1724267256306,0.00285142,61145.0,61133.0,0.327155]
[1724267256510,0.00285142,61145.0,61134.0,1.41278389]
[1724267256719,0.00285142,61145.0,61144.0,0.490644]
[1724267256937,0.001875,61150.0,61144.0,0.49109898]
[1724267257147,0.001875,61150.0,61142.0,0.00189211]
[1724267257148,0.001875,61150.0,61145.0,0.32754698]
[1724267257349,0.163542,61147.0,61140.0,0.163558]
[1724267257563,0.163542,61147.0,61138.0,0.327127]
[1724267257564,0.163536,61149.0,61141.0,0.16400298]
[1724267257772,0.014,61145.0,61141.0,0.49110998]
[1724267257983,0.014,61145.0,61141.0,0.16400298]
[1724267258212,0.001875,61150.0,61141.0,0.16400298]
[1724267258634,0.014,61147.0,61144.0,0.163547]
[1724267258808,0.014,61147.0,61145.0,0.16400298]
[1724267259423,0.014,61147.0,61146.0,0.163542]
[1724267259636,0.014,61147.0,61145.0,0.16400298]
[1724267259838,0.001875,61150.0,61146.0,0.163542]
[1724267260042,0.004822,61148.0,61141.0,0.328109]
[1724267260240,0.004822,61148.0,61141.0,0.001]
[1724267260447,0.327081,61147.0,61141.0,0.001]
[1724267260650,0.163541,61147.0,61139.0,0.00189211]
[1724267260854,0.163547,61145.0,61140.0,0.32755998]
[1724267261055,0.0373778,61147.0,61142.0,0.163553]
[1724267261056,0.167542,61147.0,61142.0,0.163553]
[1724267261480,0.000822,61148.0,61143.0,0.16400298]
[1724267261679,0.000822,61148.0,61147.0,0.49062]
[1724267261885,0.000822,61148.0,61146.0,0.00432743]
[1724267262088,0.16354,61147.0,61146.0,0.00432743]
[1724267262500,0.000822,61148.0,61146.0,0.00432743]
[1724267262501,0.16436,61148.0,61146.0,0.00432743]
[1724267262898,0.000822,61148.0,61146.0,0.00432743]
[1724267263315,0.003,61147.0,61146.0,0.00432743]
[1724267263523,0.16654,61147.0,61146.0,0.00432743]
[1724267263723,0.49362,61147.0,61146.0,0.00432743]